Workbook

Sheet JUD2601
J1: TASA ACTIVA BANCO DE LA NACIÓN ARGENTINA | P1: Desde | Q1: Hasta | S1: Desde | T1: Desde
J2: ACTA CNAT 2601 | P2: =+'JUD2601'!$M$5 -> 2003-11-07 | Q2: =+'JUD2601'!$M$9 -> 2016-03-22 | S2: =">="&LOOKUP(P2,A:A,A:A) -> >=37932 | T2: ="<="&Q2 -> <=42451
W3: =+W5-V5 -> 1648
A4: Desde | B4: Hasta | C4: Valor | D4: Q dias | E4: TEM | F4: TED | P4: Desde | Q4: Hasta | R4: Valor | S4: Q dias | T4: TEM | U4: TED | V4: Fecha Inicial | W4: Fecha Final | Y4: =SUM($Y$5:$Y$1503) -> 33011.53425
A5: 2003-11-07 | B5: 2008-05-12 | C5: 19.9 | D5: 1649 | E5: =+C5/365 -> 0.05452054795 | F5: =+E5/100 -> 0.0005452054795 | H5: Capital original | I5: 10000 | L5: Fecha Inicial | M5: 2003-11-07 | P5: 2003-11-07 | Q5: 2008-05-12 | R5: 19.9 | S5: 1649 | T5: 0.05452054795 | U5: 0.0005452054795 | V5: =+IF($P$2=$P5,$P5,$P$2) -> 2003-11-07 | W5: =+IF(AND($M$9>=P5,$M$9<=Q5),$M$9,Q5) -> 2008-05-12 | X5: =+IFERROR(IF(OR(V5<>0,W5<>0), _xlfn.DAYS(W5,V5)+1,_xlfn.DAYS(W5,P5)+1), _xlfn.DAYS(Q5,P5)+1) -> 1649 | Y5: =+$I$5*($X5*U5) -> 8990.438356
A6: 2008-05-13 | B6: 2008-12-10 | C6: 21 | D6: 212 | E6: =+C6/365 -> 0.05753424658 | F6: =+E6/100 -> 0.0005753424658 | I6: nnn,nn -no usar puntos- | M6: dd/mm/aaaa | P6: 2008-05-13 | Q6: 2008-12-10 | R6: 21 | S6: 212 | T6: 0.05753424658 | U6: 0.0005753424658 | V6: =+IF($P$2=$P6,$P$2,$P6) -> 2008-05-13 | W6: 2008-12-10 | X6: =+IFERROR(IF(OR(V6<>0,W6<>0), _xlfn.DAYS(W6,V6)+1,_xlfn.DAYS(W6,P6)+1), _xlfn.DAYS(Q6,P6)+1) -> 212 | Y6: =+$I$5*($X6*U6) -> 1219.726027
A7: 2008-12-11 | B7: 2010-03-21 | C7: 30.5 | D7: 466 | E7: 0.08356164384 | F7: 0.0008356164384 | M7: Ingrese una fecha inicial igual o posterior al 07/11/2003 | P7: 2008-12-11 | Q7: 2010-03-21 | R7: 30.5 | S7: 466 | T7: 0.08356164384 | U7: 0.0008356164384 | V7: =+IF($P$2=$P7,$P$2,$P7) -> 2008-12-11 | W7: 2010-03-21 | X7: 466 | Y7: =+$I$5*($X7*U7) -> 3893.972603
A8: 2010-03-22 | B8: 2011-11-28 | C8: 26.5 | D8: 617 | E8: 0.07260273973 | F8: 0.0007260273973 | P8: 2010-03-22 | Q8: 2011-11-28 | R8: 26.5 | S8: 617 | T8: 0.07260273973 | U8: 0.0007260273973 | V8: 2010-03-22 | W8: 2011-11-28 | X8: 617 | Y8: 4479.589041
A9: 2011-11-29 | B9: 2013-09-29 | C9: 30.5 | D9: 671 | E9: 0.08356164384 | F9: 0.0008356164384 | H9: Interés | I9: =+$Y$4 -> 33011.53425 | L9: Fecha final | M9: 2016-03-22 | P9: 2011-11-29 | Q9: 2013-09-29 | R9: 30.5 | S9: 671 | T9: 0.08356164384 | U9: 0.0008356164384 | V9: 2011-11-29 | W9: 2013-09-29 | X9: 671 | Y9: 5606.986301
A10: 2013-09-30 | B10: 2014-02-04 | C10: 33 | D10: 128 | E10: 0.0904109589 | F10: 0.000904109589 | M10: dd/mm/aaaa | P10: 2013-09-30 | Q10: 2014-02-04 | R10: 33 | S10: 128 | T10: 0.0904109589 | U10: 0.000904109589 | V10: 2013-09-30 | W10: 2014-02-04 | X10: 128 | Y10: 1157.260274
A11: 2014-02-05 | B11: 2016-03-22 | C11: 36 | D11: 777 | E11: 0.09863013699 | F11: 0.0009863013699 | M11: Ingrese una fecha final igual o inferior al 22/03/2016 | P11: 2014-02-05 | Q11: 2016-03-22 | R11: 36 | S11: 777 | T11: 0.09863013699 | U11: 0.0009863013699 | V11: 2014-02-05 | W11: 2016-03-22 | X11: 777 | Y11: 7663.561644
V12: 00:00:00 | W12: 00:00:00 | X12: 1 | Y12: 0
H13: Monto | I13: =+I5+I9 -> 43011.53425 | L13: Días Trascurridos | M13: =_xlfn.DAYS(M9,M5)+1 -> 4520 | V13: 00:00:00 | W13: 00:00:00 | X13: 1 | Y13: 0
V14: 00:00:00 | W14: 00:00:00 | X14: 1 | Y14: 0
H15: Nota: | V15: 00:00:00 | W15: 00:00:00 | X15: 1 | Y15: 0
H16: Podrían existir variaciones en el resultado final motivadas por redondeos, aproximaciones en decimales o diferentes criterios | V16: 00:00:00 | W16: 00:00:00 | X16: 1 | Y16: 0
H17: en los días que se incluyen en el cálculo, que no resultan en diferencias significativas. | V17: 00:00:00 | W17: 00:00:00 | X17: 1 | Y17: 0
V18: 00:00:00 | W18: 00:00:00 | X18: 1 | Y18: 0
V19: 00:00:00 | W19: 00:00:00 | X19: 1 | Y19: 0
V20: 00:00:00 | W20: 00:00:00 | X20: 1 | Y20: 0
V21: 00:00:00 | W21: 00:00:00 | X21: 1 | Y21: 0
V22: 00:00:00 | W22: 00:00:00 | X22: 1 | Y22: 0
V23: 00:00:00 | W23: 00:00:00 | X23: 1 | Y23: 0
V24: 00:00:00 | W24: 00:00:00 | X24: 1 | Y24: 0
V25: 00:00:00 | W25: 00:00:00 | X25: 1 | Y25: 0
V26: 00:00:00 | W26: 00:00:00 | X26: 1 | Y26: 0
V27: 00:00:00 | W27: 00:00:00 | X27: 1 | Y27: 0
V28: 00:00:00 | W28: 00:00:00 | X28: 1 | Y28: 0
V29: 00:00:00 | W29: 00:00:00 | X29: 1 | Y29: 0
V30: 00:00:00 | W30: 00:00:00 | X30: 1 | Y30: 0
V31: 00:00:00 | W31: 00:00:00 | X31: 1 | Y31: 0
V32: 00:00:00 | W32: 00:00:00 | X32: 1 | Y32: 0
V33: 00:00:00 | W33: 00:00:00 | X33: 1 | Y33: 0
V34: 00:00:00 | W34: 00:00:00 | X34: 1 | Y34: 0
V35: 00:00:00 | W35: 00:00:00 | X35: 1 | Y35: 0
V36: 00:00:00 | W36: 00:00:00 | X36: 1 | Y36: 0
V37: 00:00:00 | W37: 00:00:00 | X37: 1 | Y37: 0
V38: 00:00:00 | W38: 00:00:00 | X38: 1 | Y38: 0
V39: 00:00:00 | W39: 00:00:00 | X39: 1 | Y39: 0
V40: 00:00:00 | W40: 00:00:00 | X40: 1 | Y40: 0
V41: 00:00:00 | W41: 00:00:00 | X41: 1 | Y41: 0
V42: 00:00:00 | W42: 00:00:00 | X42: 1 | Y42: 0
V43: 00:00:00 | W43: 00:00:00 | X43: 1 | Y43: 0
V44: 00:00:00 | W44: 00:00:00 | X44: 1 | Y44: 0
V45: 00:00:00 | W45: 00:00:00 | X45: 1 | Y45: 0
V46: 00:00:00 | W46: 00:00:00 | X46: 1 | Y46: 0
V47: 00:00:00 | W47: 00:00:00 | X47: 1 | Y47: 0
V48: 00:00:00 | W48: 00:00:00 | X48: 1 | Y48: 0
V49: 00:00:00 | W49: 00:00:00 | X49: 1 | Y49: 0
V50: 00:00:00 | W50: 00:00:00 | X50: 1 | Y50: 0
V51: 00:00:00 | W51: 00:00:00 | X51: 1 | Y51: 0
V52: 00:00:00 | W52: 00:00:00 | X52: 1 | Y52: 0
V53: 00:00:00 | W53: 00:00:00 | X53: 1 | Y53: 0
V54: 00:00:00 | W54: 00:00:00 | X54: 1 | Y54: 0
V55: 00:00:00 | W55: 00:00:00 | X55: 1 | Y55: 0
V56: 00:00:00 | W56: 00:00:00 | X56: 1 | Y56: 0
V57: 00:00:00 | W57: 00:00:00 | X57: 1 | Y57: 0
V58: 00:00:00 | W58: 00:00:00 | X58: 1 | Y58: 0
V59: 00:00:00 | W59: 00:00:00 | X59: 1 | Y59: 0
V60: 00:00:00 | W60: 00:00:00 | X60: 1 | Y60: 0
V61: 00:00:00 | W61: 00:00:00 | X61: 1 | Y61: 0
V62: 00:00:00 | W62: 00:00:00 | X62: 1 | Y62: 0
V63: 00:00:00 | W63: 00:00:00 | X63: 1 | Y63: 0
V64: 00:00:00 | W64: 00:00:00 | X64: 1 | Y64: 0
V65: 00:00:00 | W65: 00:00:00 | X65: 1 | Y65: 0
V66: 00:00:00 | W66: 00:00:00 | X66: 1 | Y66: 0
V67: 00:00:00 | W67: 00:00:00 | X67: 1 | Y67: 0
V68: 00:00:00 | W68: 00:00:00 | X68: 1 | Y68: 0
V69: 00:00:00 | W69: =+IF(AND($M$9>=P69,$M$9<=Q69),$M$9,Q69) -> 00:00:00 | X69: 1 | Y69: 0
V70: 00:00:00 | W70: 00:00:00 | X70: =+IFERROR(IF(OR(V70<>0,W70<>0), _xlfn.DAYS(W70,V70)+1,_xlfn.DAYS(W70,P70)+1), _xlfn.DAYS(Q70,P70)+1) -> 1 | Y70: 0
V71: =+IF($P$2=$P71,$P$2,$P71) -> 00:00:00 | W71: 00:00:00 | X71: 1 | Y71: =+$I$5*($X71*U71) -> 0
V72: 00:00:00 | W72: 00:00:00 | X72: 1 | Y72: 0
V73: 00:00:00 | W73: 00:00:00 | X73: 1 | Y73: 0
V74: 00:00:00 | W74: 00:00:00 | X74: 1 | Y74: 0
V75: 00:00:00 | W75: 00:00:00 | X75: 1 | Y75: 0
V76: 00:00:00 | W76: 00:00:00 | X76: 1 | Y76: 0
V77: 00:00:00 | W77: 00:00:00 | X77: 1 | Y77: 0
V78: 00:00:00 | W78: 00:00:00 | X78: 1 | Y78: 0
V79: 00:00:00 | W79: 00:00:00 | X79: 1 | Y79: 0
V80: 00:00:00 | W80: 00:00:00 | X80: 1 | Y80: 0
V81: 00:00:00 | W81: 00:00:00 | X81: 1 | Y81: 0
V82: 00:00:00 | W82: 00:00:00 | X82: 1 | Y82: 0
V83: 00:00:00 | W83: 00:00:00 | X83: 1 | Y83: 0
V84: 00:00:00 | W84: 00:00:00 | X84: 1 | Y84: 0
V85: 00:00:00 | W85: 00:00:00 | X85: 1 | Y85: 0
V86: 00:00:00 | W86: 00:00:00 | X86: 1 | Y86: 0
V87: 00:00:00 | W87: 00:00:00 | X87: 1 | Y87: 0
V88: 00:00:00 | W88: 00:00:00 | X88: 1 | Y88: 0
V89: 00:00:00 | W89: 00:00:00 | X89: 1 | Y89: 0
V90: 00:00:00 | W90: 00:00:00 | X90: 1 | Y90: 0
V91: 00:00:00 | W91: 00:00:00 | X91: 1 | Y91: 0
V92: 00:00:00 | W92: 00:00:00 | X92: 1 | Y92: 0
V93: 00:00:00 | W93: 00:00:00 | X93: 1 | Y93: 0
V94: 00:00:00 | W94: 00:00:00 | X94: 1 | Y94: 0
V95: 00:00:00 | W95: 00:00:00 | X95: 1 | Y95: 0
V96: 00:00:00 | W96: 00:00:00 | X96: 1 | Y96: 0
V97: 00:00:00 | W97: 00:00:00 | X97: 1 | Y97: 0
V98: 00:00:00 | W98: 00:00:00 | X98: 1 | Y98: 0
V99: 00:00:00 | W99: 00:00:00 | X99: 1 | Y99: 0
V100: 00:00:00 | W100: 00:00:00 | X100: 1 | Y100: 0
V101: 00:00:00 | W101: 00:00:00 | X101: 1 | Y101: 0
V102: 00:00:00 | W102: 00:00:00 | X102: 1 | Y102: 0
V103: 00:00:00 | W103: 00:00:00 | X103: 1 | Y103: 0
V104: 00:00:00 | W104: 00:00:00 | X104: 1 | Y104: 0
V105: 00:00:00 | W105: 00:00:00 | X105: 1 | Y105: 0
V106: 00:00:00 | W106: 00:00:00 | X106: 1 | Y106: 0
V107: 00:00:00 | W107: 00:00:00 | X107: 1 | Y107: 0
V108: 00:00:00 | W108: 00:00:00 | X108: 1 | Y108: 0
V109: 00:00:00 | W109: 00:00:00 | X109: 1 | Y109: 0
V110: 00:00:00 | W110: 00:00:00 | X110: 1 | Y110: 0
V111: 00:00:00 | W111: 00:00:00 | X111: 1 | Y111: 0
V112: 00:00:00 | W112: 00:00:00 | X112: 1 | Y112: 0
V113: 00:00:00 | W113: 00:00:00 | X113: 1 | Y113: 0
V114: 00:00:00 | W114: 00:00:00 | X114: 1 | Y114: 0
V115: 00:00:00 | W115: 00:00:00 | X115: 1 | Y115: 0
V116: 00:00:00 | W116: 00:00:00 | X116: 1 | Y116: 0
V117: 00:00:00 | W117: 00:00:00 | X117: 1 | Y117: 0
V118: 00:00:00 | W118: 00:00:00 | X118: 1 | Y118: 0
V119: 00:00:00 | W119: 00:00:00 | X119: 1 | Y119: 0
V120: 00:00:00 | W120: 00:00:00 | X120: 1 | Y120: 0
V121: 00:00:00 | W121: 00:00:00 | X121: 1 | Y121: 0
V122: 00:00:00 | W122: 00:00:00 | X122: 1 | Y122: 0
V123: 00:00:00 | W123: 00:00:00 | X123: 1 | Y123: 0
V124: 00:00:00 | W124: 00:00:00 | X124: 1 | Y124: 0
V125: 00:00:00 | W125: 00:00:00 | X125: 1 | Y125: 0
V126: 00:00:00 | W126: 00:00:00 | X126: 1 | Y126: 0
V127: 00:00:00 | W127: 00:00:00 | X127: 1 | Y127: 0
V128: 00:00:00 | W128: 00:00:00 | X128: 1 | Y128: 0
V129: 00:00:00 | W129: 00:00:00 | X129: 1 | Y129: 0
V130: 00:00:00 | W130: 00:00:00 | X130: 1 | Y130: 0
V131: 00:00:00 | W131: 00:00:00 | X131: 1 | Y131: 0
V132: 00:00:00 | W132: 00:00:00 | X132: 1 | Y132: 0
V133: 00:00:00 | W133: =+IF(AND($M$9>=P133,$M$9<=Q133),$M$9,Q133) -> 00:00:00 | X133: 1 | Y133: 0
V134: 00:00:00 | W134: 00:00:00 | X134: =+IFERROR(IF(OR(V134<>0,W134<>0), _xlfn.DAYS(W134,V134)+1,_xlfn.DAYS(W134,P134)+1), _xlfn.DAYS(Q134,P134)+1) -> 1 | Y134: 0
V135: =+IF($P$2=$P135,$P$2,$P135) -> 00:00:00 | W135: 00:00:00 | X135: 1 | Y135: =+$I$5*($X135*U135) -> 0
V136: 00:00:00 | W136: 00:00:00 | X136: 1 | Y136: 0
V137: 00:00:00 | W137: 00:00:00 | X137: 1 | Y137: 0
V138: 00:00:00 | W138: 00:00:00 | X138: 1 | Y138: 0
V139: 00:00:00 | W139: 00:00:00 | X139: 1 | Y139: 0
V140: 00:00:00 | W140: 00:00:00 | X140: 1 | Y140: 0
V141: 00:00:00 | W141: 00:00:00 | X141: 1 | Y141: 0
V142: 00:00:00 | W142: 00:00:00 | X142: 1 | Y142: 0
V143: 00:00:00 | W143: 00:00:00 | X143: 1 | Y143: 0
V144: 00:00:00 | W144: 00:00:00 | X144: 1 | Y144: 0
V145: 00:00:00 | W145: 00:00:00 | X145: 1 | Y145: 0
V146: 00:00:00 | W146: 00:00:00 | X146: 1 | Y146: 0
V147: 00:00:00 | W147: 00:00:00 | X147: 1 | Y147: 0
V148: 00:00:00 | W148: 00:00:00 | X148: 1 | Y148: 0
V149: 00:00:00 | W149: 00:00:00 | X149: 1 | Y149: 0
V150: 00:00:00 | W150: 00:00:00 | X150: 1 | Y150: 0
V151: 00:00:00 | W151: 00:00:00 | X151: 1 | Y151: 0
V152: 00:00:00 | W152: 00:00:00 | X152: 1 | Y152: 0
V153: 00:00:00 | W153: 00:00:00 | X153: 1 | Y153: 0
V154: 00:00:00 | W154: 00:00:00 | X154: 1 | Y154: 0
V155: 00:00:00 | W155: 00:00:00 | X155: 1 | Y155: 0
V156: 00:00:00 | W156: 00:00:00 | X156: 1 | Y156: 0
V157: 00:00:00 | W157: 00:00:00 | X157: 1 | Y157: 0
V158: 00:00:00 | W158: 00:00:00 | X158: 1 | Y158: 0
V159: 00:00:00 | W159: 00:00:00 | X159: 1 | Y159: 0
V160: 00:00:00 | W160: 00:00:00 | X160: 1 | Y160: 0
V161: 00:00:00 | W161: 00:00:00 | X161: 1 | Y161: 0
V162: 00:00:00 | W162: 00:00:00 | X162: 1 | Y162: 0
V163: 00:00:00 | W163: 00:00:00 | X163: 1 | Y163: 0
V164: 00:00:00 | W164: 00:00:00 | X164: 1 | Y164: 0
V165: 00:00:00 | W165: 00:00:00 | X165: 1 | Y165: 0
V166: 00:00:00 | W166: 00:00:00 | X166: 1 | Y166: 0
V167: 00:00:00 | W167: 00:00:00 | X167: 1 | Y167: 0
V168: 00:00:00 | W168: 00:00:00 | X168: 1 | Y168: 0
V169: 00:00:00 | W169: 00:00:00 | X169: 1 | Y169: 0
V170: 00:00:00 | W170: 00:00:00 | X170: 1 | Y170: 0
V171: 00:00:00 | W171: 00:00:00 | X171: 1 | Y171: 0
V172: 00:00:00 | W172: 00:00:00 | X172: 1 | Y172: 0
V173: 00:00:00 | W173: 00:00:00 | X173: 1 | Y173: 0
V174: 00:00:00 | W174: 00:00:00 | X174: 1 | Y174: 0
V175: 00:00:00 | W175: 00:00:00 | X175: 1 | Y175: 0
V176: 00:00:00 | W176: 00:00:00 | X176: 1 | Y176: 0
V177: 00:00:00 | W177: 00:00:00 | X177: 1 | Y177: 0
V178: 00:00:00 | W178: 00:00:00 | X178: 1 | Y178: 0
V179: 00:00:00 | W179: 00:00:00 | X179: 1 | Y179: 0
V180: 00:00:00 | W180: 00:00:00 | X180: 1 | Y180: 0
V181: 00:00:00 | W181: 00:00:00 | X181: 1 | Y181: 0
V182: 00:00:00 | W182: 00:00:00 | X182: 1 | Y182: 0
V183: 00:00:00 | W183: 00:00:00 | X183: 1 | Y183: 0
V184: 00:00:00 | W184: 00:00:00 | X184: 1 | Y184: 0
V185: 00:00:00 | W185: 00:00:00 | X185: 1 | Y185: 0
V186: 00:00:00 | W186: 00:00:00 | X186: 1 | Y186: 0
V187: 00:00:00 | W187: 00:00:00 | X187: 1 | Y187: 0
V188: 00:00:00 | W188: 00:00:00 | X188: 1 | Y188: 0
V189: 00:00:00 | W189: 00:00:00 | X189: 1 | Y189: 0
V190: 00:00:00 | W190: 00:00:00 | X190: 1 | Y190: 0
V191: 00:00:00 | W191: 00:00:00 | X191: 1 | Y191: 0
V192: 00:00:00 | W192: 00:00:00 | X192: 1 | Y192: 0
V193: 00:00:00 | W193: 00:00:00 | X193: 1 | Y193: 0
V194: 00:00:00 | W194: 00:00:00 | X194: 1 | Y194: 0
V195: 00:00:00 | W195: 00:00:00 | X195: 1 | Y195: 0
V196: 00:00:00 | W196: 00:00:00 | X196: 1 | Y196: 0
V197: 00:00:00 | W197: =+IF(AND($M$9>=P197,$M$9<=Q197),$M$9,Q197) -> 00:00:00 | X197: 1 | Y197: 0
V198: 00:00:00 | W198: 00:00:00 | X198: =+IFERROR(IF(OR(V198<>0,W198<>0), _xlfn.DAYS(W198,V198)+1,_xlfn.DAYS(W198,P198)+1), _xlfn.DAYS(Q198,P198)+1) -> 1 | Y198: 0
V199: =+IF($P$2=$P199,$P$2,$P199) -> 00:00:00 | W199: 00:00:00 | X199: 1 | Y199: =+$I$5*($X199*U199) -> 0
V200: 00:00:00 | W200: 00:00:00 | X200: 1 | Y200: 0
... 1300 more rows
